bitfinex/quotes_BTCUSD_20220101
["timestamp","ask_amount","ask_price","bid_price","bid_amount"]
[1641041204174,0.82128098,47061.0,47060.0,0.10018369]
[1641041204374,0.54989545,47061.0,47060.0,0.10018369]
[1641041204578,0.57122277,47061.0,47060.0,0.10018369]
[1641041205177,0.56913437,47061.0,47060.0,0.10018369]
[1641041206021,0.54989545,47061.0,47060.0,0.10018369]
[1641041206222,0.57102859,47061.0,47060.0,0.10018369]
[1641041207024,0.54989545,47061.0,47060.0,0.10018369]
[1641041207225,0.57129649,47061.0,47060.0,0.10018369]
[1641041208024,0.54989545,47061.0,47060.0,0.10018369]
[1641041208325,0.5594076,47061.0,47060.0,0.10018369]
[1641041208723,0.3644076,47061.0,47060.0,0.10018369]
[1641041209173,0.35489545,47061.0,47060.0,0.10018369]
[1641041209375,0.37642548,47061.0,47060.0,0.10018369]
[1641041210177,0.35489545,47061.0,47060.0,0.10018369]
[1641041210377,0.36567948,47061.0,47060.0,0.10018369]
[1641041211278,0.3739203,47061.0,47060.0,0.10018369]
[1641041212076,0.35489545,47061.0,47060.0,0.10018369]
[1641041212279,0.36559575,47061.0,47060.0,0.10018369]
[1641041213326,0.03590907,47061.0,47060.0,0.10018369]
[1641041213725,0.01446645,47061.0,47060.0,0.10018369]
[1641041214324,0.02427309,47061.0,47060.0,0.10018369]
[1641041215226,0.01446645,47061.0,47060.0,0.10018369]
[1641041216677,0.01446645,47061.0,47060.0,0.44061269]
[1641041216678,6.776e-05,47061.0,47060.0,0.44061269]
[1641041216878,0.10483482,47068.0,47060.0,0.44061269]
[1641041216879,0.10010258,47068.0,47061.0,0.340429]
[1641041217078,0.10010258,47068.0,47062.0,0.29277534]
[1641041217280,0.0002191,47066.0,47063.0,0.340429]
[1641041217482,0.0002191,47066.0,47065.0,0.10018369]
[1641041217678,0.0998573,47068.0,47065.0,0.10018369]
[1641041217878,0.0998573,47068.0,47065.0,0.15330769]
[1641041218080,0.00023735,47067.0,47065.0,0.15330769]
[1641041218478,0.0002191,47066.0,47065.0,0.10018369]
[1641041218979,0.0002191,47066.0,47065.0,0.36904364]
[1641041219983,0.08567386,47068.0,47065.0,0.38841563]
[1641041221026,0.08567386,47068.0,47065.0,0.40763567]
[1641041221229,0.08567386,47068.0,47065.0,0.38826368]
[1641041221427,0.08567386,47068.0,47065.0,0.11940373]
[1641041222028,0.08567386,47068.0,47065.0,0.13748656]
[1641041222226,0.08567386,47068.0,47065.0,0.11826652]
[1641041222427,0.08567386,47068.0,47065.0,0.08941881]
[1641041222629,0.08567386,47068.0,47065.0,0.01808283]
[1641041222927,0.08567386,47068.0,47066.0,0.10018369]
[1641041226182,0.08567386,47068.0,47067.0,0.340429]
[1641041226583,0.08567386,47068.0,47066.0,0.10018369]
[1641041226785,0.08567386,47068.0,47066.0,0.15330669]
[1641041227084,0.08567386,47068.0,47067.0,0.36122468]
[1641041227285,0.08567386,47068.0,47067.0,0.02079568]
[1641041228128,0.08567386,47068.0,47067.0,0.12097937]
[1641041228329,0.08567386,47068.0,47067.0,0.10018369]
[1641041231580,0.0857412,47068.0,47067.0,0.10018369]
[1641041238235,0.01346734,47068.0,47067.0,0.10018369]
[1641041238431,0.0002,47072.0,47069.0,0.96121733]
[1641041238630,0.0002,47072.0,47070.0,1.300429]
[1641041238830,0.0002,47072.0,47070.0,0.340429]
[1641041239076,0.0002,47072.0,47070.0,0.44061269]
[1641041239278,2.276e-05,47077.0,47074.0,0.33514719]
[1641041239478,2.276e-05,47077.0,47075.0,0.340429]
[1641041240280,0.0004,47078.0,47076.0,0.053109]
[1641041240679,0.00020083,47077.0,47076.0,0.053109]
[1641041241078,0.00020083,47077.0,47076.0,2.85041716]
[1641041241282,0.00020083,47077.0,47076.0,3.19084616]
[1641041242080,0.00026943,47077.0,47076.0,3.19084616]
[1641041242278,0.00026943,47077.0,47076.0,3.21086837]
[1641041243130,0.00026943,47077.0,47076.0,3.23275539]
[1641041243331,0.00026943,47077.0,47076.0,3.21273318]
[1641041244332,0.00026943,47077.0,47076.0,3.33156121]
[1641041244532,0.00026943,47077.0,47076.0,3.30967419]
[1641041245332,0.00026943,47077.0,47076.0,3.32834752]
[1641041245532,0.00026943,47077.0,47076.0,3.30970318]
[1641041245932,0.00688207,47086.0,47076.0,3.30970318]
[1641041245933,0.0002,47084.0,47076.0,3.30970318]
[1641041246135,0.0051515,47086.0,47085.0,0.24791318]
[1641041246333,0.06508222,47086.0,47085.0,0.24791318]
[1641041246778,0.05993072,47086.0,47085.0,0.24791318]
[1641041249582,0.05993072,47086.0,47085.0,0.34809687]
[1641041249782,0.0004,47087.0,47085.0,0.34809687]
[1641041250181,0.0004,47087.0,47085.0,0.3683481]
[1641041250828,0.05993072,47086.0,47085.0,0.3683481]
[1641041251029,0.0004,47087.0,47085.0,0.3683481]
[1641041251227,0.0004,47087.0,47085.0,0.3899446]
[1641041251434,0.0004,47087.0,47085.0,0.36969337]
[1641041252229,0.0004,47087.0,47085.0,0.38804831]
[1641041252431,0.0004,47087.0,47085.0,0.36645181]
[1641041252831,7.016e-05,47086.0,47085.0,0.36645181]
[1641041253833,7.016e-05,47086.0,47085.0,0.38815129]
[1641041254086,7.016e-05,47086.0,47085.0,0.36979635]
[1641041254283,7.016e-05,47086.0,47085.0,0.38879261]
[1641041254482,7.016e-05,47086.0,47085.0,0.36709313]
[1641041255286,7.016e-05,47086.0,47085.0,0.38549694]
[1641041255486,7.016e-05,47086.0,47085.0,0.36650068]
[1641041256286,7.016e-05,47086.0,47085.0,0.38645274]
[1641041256487,7.016e-05,47086.0,47085.0,0.36804893]
[1641041257931,7.016e-05,47086.0,47085.0,0.38634877]
[1641041258134,7.016e-05,47086.0,47085.0,0.36639671]
[1641041258332,7.016e-05,47086.0,47085.0,0.38828785]
[1641041258531,7.016e-05,47086.0,47085.0,0.36998801]
[1641041259334,7.016e-05,47086.0,47085.0,0.38815564]
[1641041259531,7.016e-05,47086.0,47085.0,0.3662645]
[1641041260331,7.016e-05,47086.0,47085.0,0.38478547]
[1641041260531,7.016e-05,47086.0,47085.0,0.36661784]
[1641041261332,7.016e-05,47086.0,47085.0,0.38487319]
[1641041261579,7.016e-05,47086.0,47085.0,0.36635222]
[1641041262280,7.016e-05,47086.0,47085.0,0.38520025]
[1641041262480,7.016e-05,47086.0,47085.0,0.3669449]
[1641041262682,0.0024,47089.0,47085.0,0.3669449]
[1641041262683,0.05472881,47092.0,47085.0,0.3669449]
[1641041263080,0.00018258,47087.0,47085.0,0.26676121]
[1641041263283,6.378e-05,47086.0,47085.0,0.34176705]
[1641041263482,6.378e-05,47086.0,47085.0,0.28866505]
[1641041263483,0.0002281,47086.0,47085.0,0.28866505]
[1641041264486,0.0002281,47086.0,47085.0,0.24791318]
[1641041268433,0.0002281,47086.0,47085.0,0.34809687]
[1641041269486,0.0002281,47086.0,47085.0,0.36757804]
[1641041270487,0.0002281,47086.0,47085.0,0.38614769]
[1641041270688,0.0002281,47086.0,47085.0,0.36666652]
[1641041271489,0.0002281,47086.0,47085.0,0.38544423]
[1641041271688,0.0002281,47086.0,47085.0,0.36687458]
[1641041272489,0.0002281,47086.0,47085.0,0.38607789]
[1641041272689,0.0002281,47086.0,47085.0,0.36730018]
[1641041273535,0.0002281,47086.0,47085.0,0.38773596]
[1641041273736,0.0002281,47086.0,47085.0,0.36853265]
[1641041275138,0.0002281,47086.0,47085.0,0.3866863]
[1641041275437,0.0002281,47086.0,47085.0,0.38623288]
[1641041275637,0.0002281,47086.0,47085.0,0.36807923]
[1641041276603,0.0002281,47086.0,47085.0,0.36823847]
[1641041277402,0.0002281,47086.0,47085.0,0.38797928]
[1641041279203,0.0002281,47086.0,47085.0,0.40975517]
[1641041279404,0.0002281,47086.0,47085.0,0.36987276]
[1641041280210,0.0002281,47086.0,47085.0,0.38887922]
[1641041280434,0.0002281,47086.0,47085.0,0.36710333]
[1641041280634,0.0002281,47086.0,47085.0,0.38889573]
[1641041280835,0.0002281,47086.0,47085.0,0.36988927]
[1641041281631,0.0002281,47086.0,47085.0,0.38923295]
[1641041281834,0.0002281,47086.0,47085.0,0.36744055]
[1641041282633,0.0002281,47086.0,47085.0,0.38894219]
[1641041282837,0.0002281,47086.0,47085.0,0.36959851]
[1641041283635,0.0002281,47086.0,47085.0,0.36637264]
[1641041284486,0.0002281,47086.0,47085.0,0.38776727]
[1641041284686,0.0002281,47086.0,47085.0,0.3694915]
[1641041285490,0.0002281,47086.0,47085.0,0.39094625]
[1641041285687,0.0002281,47086.0,47085.0,0.36955162]
[1641041286490,0.0002281,47086.0,47085.0,0.39067683]
[1641041286689,0.0002281,47086.0,47085.0,0.36922208]
[1641041287589,0.0002281,47086.0,47085.0,0.39116958]
[1641041287839,0.0002281,47086.0,47085.0,0.37004437]
[1641041288633,0.0002281,47086.0,47085.0,0.38852887]
[1641041288833,0.0002281,47086.0,47085.0,0.36658137]
[1641041289633,0.0002281,47086.0,47085.0,0.3847717]
[1641041290641,0.0002281,47086.0,47085.0,0.40501668]
[1641041290838,0.0002281,47086.0,47085.0,0.36834185]
[1641041291683,0.0002281,47086.0,47085.0,0.36747747]
[1641041292585,0.0002281,47086.0,47085.0,0.38574795]
[1641041293388,0.0002281,47086.0,47085.0,0.34809687]
[1641041293586,6.378e-05,47086.0,47085.0,0.36747161]
[1641041295340,6.378e-05,47086.0,47085.0,0.36957826]
[1641041296141,6.378e-05,47086.0,47085.0,0.38981922]
[1641041296340,6.378e-05,47086.0,47085.0,0.36833783]
[1641041296741,6.378e-05,47086.0,47085.0,0.38950942]
[1641041296941,6.378e-05,47086.0,47085.0,0.36926846]
[1641041297643,6.378e-05,47086.0,47085.0,0.38937242]
[1641041297843,6.378e-05,47086.0,47085.0,0.36820083]
[1641041298746,6.378e-05,47086.0,47085.0,0.38844739]
[1641041298947,6.378e-05,47086.0,47085.0,0.36834343]
[1641041299589,6.378e-05,47086.0,47085.0,0.38654114]
[1641041299787,6.378e-05,47086.0,47085.0,0.36629458]
[1641041300787,6.378e-05,47086.0,47085.0,0.36881358]
[1641041301789,6.378e-05,47086.0,47085.0,0.36977605]
[1641041302692,6.378e-05,47086.0,47085.0,0.38909955]
[1641041302934,6.378e-05,47086.0,47085.0,0.36742037]
[1641041303736,6.378e-05,47086.0,47085.0,0.38618186]
[1641041304834,6.378e-05,47086.0,47085.0,0.40775042]
[1641041305036,6.378e-05,47086.0,47085.0,0.36966543]
[1641041305435,6.378e-05,47086.0,47085.0,0.12175225]
[1641041305838,6.378e-05,47086.0,47085.0,0.12078524]
[1641041306035,0.40474487,47086.0,47085.0,0.12078524]
[1641041306237,0.45785687,47086.0,47085.0,0.12078524]
[1641041306435,0.94828587,47086.0,47085.0,0.12078524]
[1641041306684,1.05321659,47086.0,47085.0,0.12078524]
[1641041306884,1.05321659,47086.0,47085.0,0.10018369]
[1641041307884,0.9592731,47086.0,47085.0,0.10018369]
[1641041308084,0.97831234,47086.0,47085.0,0.10018369]
[1641041308887,0.9592731,47086.0,47085.0,0.10018369]
[1641041309085,0.97916632,47086.0,47085.0,0.10018369]
[1641041309884,0.9592731,47086.0,47085.0,0.10018369]
[1641041310087,0.9092731,47086.0,47085.0,0.10018369]
[1641041310340,0.41230149,47086.0,47085.0,0.10018369]
[1641041311135,0.41171548,47086.0,47085.0,0.10018369]
[1641041311337,0.4666462,47086.0,47085.0,0.33641712]
[1641041311936,0.38043666,47086.0,47085.0,0.33641712]
[1641041312137,0.3910513,47086.0,47085.0,0.33641712]
[1641041312537,0.0506223,47086.0,47085.0,0.33641712]
[1641041312737,0.0506223,47086.0,47085.0,0.35614856]
[1641041313137,0.0506223,47086.0,47085.0,0.33641712]
[1641041313138,0.04000766,47086.0,47085.0,0.33641712]
[1641041313740,0.04000766,47086.0,47085.0,0.35735306]
[1641041313943,0.04000766,47086.0,47085.0,0.70842338]
[1641041314783,0.04000766,47086.0,47085.0,0.72987166]
[1641041314983,0.04000766,47086.0,47085.0,0.70893572]
[1641041315783,0.04000766,47086.0,47085.0,0.7280787]
[1641041316690,0.04000766,47086.0,47085.0,0.68748744]
[1641041316886,0.04000766,47086.0,47085.0,0.70578709]
[1641041317939,0.04000766,47086.0,47085.0,0.72584589]
[1641041318139,0.04000766,47086.0,47085.0,0.70754624]
[1641041318940,0.04000766,47086.0,47085.0,0.72838265]
[1641041319142,0.04000766,47086.0,47085.0,0.70832385]
[1641041319741,0.04000766,47086.0,47085.0,0.72938038]
[1641041320242,0.04000766,47086.0,47085.0,0.70854397]
[1641041321442,0.04000766,47086.0,47085.0,0.73011476]
[1641041322285,0.04000766,47086.0,47085.0,0.7488502]
[1641041322484,0.04000766,47086.0,47085.0,0.70622288]
[1641041322882,0.04000766,47086.0,47085.0,0.72689187]
[1641041323083,0.04000766,47086.0,47085.0,0.70815643]
[1641041323884,0.04000766,47086.0,47085.0,0.72659207]
[1641041324083,0.04000766,47086.0,47085.0,0.70592308]
[1641041324883,0.04000766,47086.0,47085.0,0.72680729]
[1641041325083,0.04000766,47086.0,47085.0,0.70837165]
[1641041325736,0.04000766,47086.0,47085.0,0.72812227]
[1641041325936,0.04000766,47086.0,47085.0,0.70723806]
[1641041326936,0.04000766,47086.0,47085.0,0.72883316]
[1641041327138,0.04000766,47086.0,47085.0,0.70908254]
[1641041327939,0.04000766,47086.0,47085.0,0.72914454]
[1641041328140,0.04000766,47086.0,47085.0,0.70754944]
[1641041328941,0.04000766,47086.0,47085.0,0.72734035]
[1641041329593,0.04000766,47086.0,47085.0,0.68748744]
[1641041329995,0.04000766,47086.0,47085.0,0.33641712]
[1641041330395,0.04000766,47086.0,47085.0,0.35507602]
[1641041330897,0.04000766,47086.0,47085.0,0.37659452]
[1641041331997,0.04000766,47086.0,47085.0,0.39516225]
[1641041332198,0.04000766,47086.0,47085.0,0.35498485]
[1641041332837,0.04000766,47086.0,47085.0,0.37662135]
[1641041333035,0.04000766,47086.0,47085.0,0.35805362]
[1641041333939,0.04000766,47086.0,47085.0,0.37805746]
[1641041334138,0.04000766,47086.0,47085.0,0.35642096]
[1641041335043,0.04000766,47086.0,47085.0,0.37462663]
[1641041335241,0.08638082,47086.0,47085.0,0.35462279]
[1641041335841,0.08638082,47086.0,47085.0,0.37347846]
[1641041336043,0.08638082,47086.0,47085.0,0.35527279]
[1641041336883,0.08638082,47086.0,47085.0,0.37524794]
[1641041337083,0.08638082,47086.0,47085.0,0.35639227]
[1641041337888,0.08638082,47086.0,47085.0,0.37474603]
[1641041338085,0.08638082,47086.0,47085.0,0.35477088]
[1641041338987,0.08638082,47086.0,47085.0,0.3741303]
[1641041339186,0.08638082,47086.0,47085.0,0.35577654]
[1641041339993,0.08638082,47086.0,47085.0,0.37704957]
[1641041340346,0.08638082,47086.0,47085.0,0.35769015]
[1641041340939,0.08638082,47086.0,47085.0,0.37959483]
[1641041341141,0.08638082,47086.0,47085.0,0.3583218]
[1641041342139,0.08638082,47086.0,47085.0,0.35790973]
[1641041342942,0.08638082,47086.0,47085.0,0.37966844]
[1641041343140,0.08638082,47086.0,47085.0,0.35817583]
[1641041343940,0.08638082,47086.0,47085.0,0.38004317]
[1641041344221,0.08638082,47086.0,47085.0,0.35828446]
[1641041345021,0.08638082,47086.0,47085.0,0.37773129]
[1641041345221,0.08638082,47086.0,47085.0,0.35586395]
[1641041345924,0.08638082,47086.0,47085.0,0.37397745]
[1641041346724,0.08638082,47086.0,47085.0,0.33641712]
[1641041346924,0.08638082,47086.0,47085.0,0.35609497]
[1641041347940,0.08638082,47086.0,47085.0,0.37592271]
[1641041348146,0.08638082,47086.0,47085.0,0.35624486]
[1641041348940,0.08638082,47086.0,47085.0,0.37619784]
[1641041349744,0.08638082,47086.0,47085.0,0.33641712]
[1641041349941,0.08638082,47086.0,47085.0,0.35487206]
[1641041350342,0.08638082,47086.0,47085.0,0.33641712]
[1641041350941,0.08638082,47086.0,47085.0,0.25799901]
[1641041351442,0.08638082,47086.0,47085.0,0.25781532]
[1641041351689,0.08638082,47086.0,47085.0,0.31091732]
[1641041352290,0.08638082,47086.0,47085.0,0.28933543]
[1641041353691,0.08638082,47086.0,47085.0,0.23623343]
[1641041363148,0.0004,47093.0,47085.0,0.85083395]
[1641041363350,0.0004,47093.0,47085.0,0.51040495]
[1641041363548,0.00027387,47092.0,47086.0,0.340429]
[1641041364048,0.00025561,47091.0,47086.0,0.340429]
[1641041364250,0.00025561,47091.0,47088.0,0.38128651]
[1641041364451,0.00023735,47090.0,47089.0,0.340429]
[1641041364853,0.00023735,47090.0,47089.0,1.080429]
[1641041365251,0.00023735,47090.0,47089.0,1.10188961]
[1641041365451,0.00023735,47090.0,47089.0,1.40564314]
[1641041366253,0.00023735,47090.0,47089.0,1.4239291]
[1641041366451,0.00023735,47090.0,47089.0,1.40246849]
[1641041367288,0.00023735,47090.0,47089.0,1.10018293]
[1641041367487,0.00023735,47090.0,47089.0,1.40561093]
[1641041368091,0.00023735,47090.0,47089.0,1.40681825]
[1641041368894,0.00023735,47090.0,47089.0,1.4080392]
[1641041369096,0.00023735,47090.0,47089.0,2.5370392]
[1641041369291,0.00023735,47090.0,47089.0,2.55758666]
[1641041369493,0.00023735,47090.0,47089.0,2.53661178]
[1641041370343,0.00023735,47090.0,47089.0,2.55778185]
[1641041370539,0.00023735,47090.0,47089.0,2.51606432]
[1641041370939,0.00023735,47090.0,47089.0,1.38706432]
[1641041371339,0.00023735,47090.0,47089.0,1.40593976]
[1641041372040,0.00023735,47090.0,47089.0,0.66473244]
[1641041372240,0.00023735,47090.0,47089.0,0.68334243]
[1641041372442,0.00023735,47090.0,47089.0,0.66446699]
[1641041372842,0.00023735,47090.0,47089.0,1.82446699]
[1641041373042,0.00023735,47090.0,47089.0,2.75346699]
[1641041373241,0.00023735,47090.0,47089.0,2.46728634]
[1641041373443,0.00023735,47090.0,47089.0,4.57059594]
[1641041374296,0.00023735,47090.0,47089.0,4.59129936]
[1641041374493,0.00023735,47090.0,47089.0,4.57205201]
[1641041375297,0.00023735,47090.0,47089.0,4.59207539]
[1641041375496,3.735e-05,47094.0,47092.0,0.053081]
[1641041375695,3.735e-05,47094.0,47093.0,0.75608268]
[1641041376095,0.00011039,47094.0,47093.0,0.75608268]
[1641041376998,0.00011039,47094.0,47093.0,1.05164295]
[1641041377195,0.00011039,47094.0,47093.0,1.07066526]
[1641041377846,0.00011039,47094.0,47093.0,2.19966526]
[1641041378243,0.00011039,47094.0,47093.0,2.2197389]
[1641041378443,0.00011039,47094.0,47093.0,2.20071659]
[1641041379143,0.00011039,47094.0,47093.0,1.07171659]
[1641041380045,0.00011039,47094.0,47093.0,1.07237555]
[1641041380344,0.00011039,47094.0,47093.0,1.09244708]
[1641041380544,0.00011039,47094.0,47093.0,1.07171448]
[1641041380745,0.00011039,47094.0,47093.0,1.78908248]
[1641041381148,0.00011039,47094.0,47093.0,1.66547954]
[1641041381346,0.00011039,47094.0,47093.0,1.68400363]
[1641041381590,0.00011039,47094.0,47093.0,1.6639321]
[1641041382493,0.00011039,47094.0,47093.0,1.6642697]
[1641041383893,0.00011039,47094.0,47093.0,1.68453931]
[1641041384096,0.00011039,47094.0,47093.0,1.66567762]
[1641041384294,0.00011039,47094.0,47093.0,1.68525716]
[1641041384494,0.00011039,47094.0,47093.0,1.66498755]
[1641041385345,0.00011039,47094.0,47093.0,1.68590483]
[1641041385547,0.00011039,47094.0,47093.0,1.66632529]
[1641041386345,0.00011039,47094.0,47093.0,1.6876401]
[1641041386546,0.00011039,47094.0,47093.0,0.94935482]
[1641041387450,0.00011039,47094.0,47093.0,0.96807634]
[1641041388047,0.00011039,47094.0,47093.0,0.92804001]
[1641041388448,0.00011039,47094.0,47093.0,0.94737498]
[1641041389393,0.00011039,47094.0,47093.0,0.96829215]
[1641041389594,0.00011039,47094.0,47093.0,0.94895718]
[1641041390395,0.00011039,47094.0,47093.0,2.09973887]
[1641041390595,0.00011039,47094.0,47093.0,0.9498217]
[1641041390796,0.00011039,47094.0,47093.0,0.9998217]
[1641041391397,0.00011039,47094.0,47093.0,1.02112286]
[1641041391596,0.00011039,47094.0,47093.0,0.99934117]
[1641041392396,0.00011039,47094.0,47093.0,1.02012057]
[1641041392600,0.00011039,47094.0,47093.0,0.99881941]
[1641041393449,0.00011039,47094.0,47093.0,1.01916228]
[1641041393650,0.00011039,47094.0,47093.0,0.99838288]
[1641041394456,0.00011039,47094.0,47093.0,1.01726089]
[1641041394659,0.00625072,47102.0,47096.0,0.0001]
[1641041394856,0.0004,47101.0,47100.0,0.9601]
[1641041395055,5.072e-05,47104.0,47101.0,0.78]
[1641041395357,5.072e-05,47104.0,47103.0,0.53458908]
[1641041395756,0.00023329,47104.0,47103.0,0.53458908]
[1641041396354,0.00023329,47104.0,47103.0,0.55345192]
[1641041396595,0.00023329,47104.0,47103.0,1.15525806]
[1641041397096,0.00023329,47104.0,47103.0,1.43900072]
[1641041397495,0.00023329,47104.0,47103.0,1.45813334]
[1641041397696,0.00023329,47104.0,47103.0,1.4392705]
[1641041398397,0.00023329,47104.0,47103.0,1.45929968]
[1641041398596,0.00023329,47104.0,47103.0,1.44016706]
[1641041398996,0.00023329,47104.0,47103.0,2.56916706]
[1641041399398,0.00023329,47104.0,47103.0,1.01743218]
[1641041399598,0.00023329,47104.0,47103.0,0.997403]
[1641041400443,0.00023329,47104.0,47103.0,1.01877717]
[1641041400641,0.00023329,47104.0,47103.0,1.47360856]
[1641041401040,0.00023329,47104.0,47103.0,1.14861347]
[1641041401241,0.00023329,47104.0,47103.0,1.41892594]
[1641041401443,0.00023329,47104.0,47103.0,1.43934803]
[1641041401840,0.00023329,47104.0,47103.0,1.16903556]
[1641041402041,0.00023329,47104.0,47103.0,1.44071311]
[1641041402442,0.00023329,47104.0,47103.0,1.45994526]
[1641041402640,0.00023329,47104.0,47103.0,1.43952317]
[1641041403443,0.00023329,47104.0,47103.0,1.45963247]
[1641041403643,0.00023329,47104.0,47103.0,1.18795492]
[1641041403845,0.00023329,47104.0,47103.0,0.73312353]
[1641041404107,0.00023329,47104.0,47103.0,0.95958226]
[1641041404505,0.00023329,47104.0,47103.0,0.97770782]
[1641041405408,0.00023329,47104.0,47103.0,0.99924735]
[1641041405609,0.00023329,47104.0,47103.0,0.98112179]
[1641041406409,5.072e-05,47104.0,47103.0,1.00290108]
[1641041406609,0.0004,47106.0,47103.0,1.00290108]
[1641041406610,0.0003,47108.0,47103.0,0.98136155]
[1641041406812,0.0003,47108.0,47103.0,1.03443555]
[1641041407009,0.0003,47108.0,47105.0,0.053074]
[1641041407209,0.0003,47108.0,47106.0,0.340429]
[1641041408251,0.0101,47114.0,47106.0,0.340429]
[1641041408448,0.0101,47114.0,47111.0,0.36567315]
[1641041408449,0.00013923,47114.0,47111.0,0.36567315]
[1641041408649,0.00282525,47112.0,47111.0,0.36567315]
[1641041409046,0.00297132,47112.0,47111.0,0.36567315]
[1641041409446,0.00297132,47112.0,47111.0,2.13178606]
[1641041410448,0.00297132,47112.0,47111.0,2.15222061]
[1641041410648,0.00297132,47112.0,47111.0,2.13358196]
[1641041411449,0.00297132,47112.0,47111.0,2.15265167]
[1641041411700,0.00297132,47112.0,47111.0,2.13221712]
[1641041412602,0.00297132,47112.0,47111.0,2.15215616]
[1641041412803,0.00297132,47112.0,47111.0,2.13308645]
[1641041413503,0.00297132,47112.0,47111.0,2.1524821]
[1641041413700,0.00297132,47112.0,47111.0,2.13254306]
[1641041414503,0.00297132,47112.0,47111.0,2.15223958]
[1641041414702,0.00297132,47112.0,47111.0,2.13284393]
[1641041415544,0.00297132,47112.0,47111.0,2.15375762]
[1641041415741,0.00297132,47112.0,47111.0,2.1340611]
[1641041416144,0.00297132,47112.0,47111.0,2.4744901]
[1641041416544,0.00014607,47112.0,47111.0,2.49449073]
[1641041416745,0.00014607,47112.0,47111.0,2.47357704]
[1641041417546,0.00014607,47112.0,47111.0,2.76465674]
[1641041417745,0.00014607,47112.0,47111.0,2.74465611]
[1641041418649,0.00014607,47112.0,47111.0,2.76587566]
[1641041418946,0.00014607,47112.0,47111.0,2.74609872]
[1641041419591,0.00014607,47112.0,47111.0,2.76700029]
[1641041419791,0.00014607,47112.0,47111.0,2.79578074]
[1641041420391,0.00014607,47112.0,47111.0,3.92478074]
[1641041420591,0.00014607,47112.0,47111.0,3.94734305]
[1641041420791,0.00014607,47112.0,47111.0,3.92644148]
[1641041421193,6.07e-06,47112.0,47111.0,3.92644148]
[1641041421397,0.0001,47117.0,47115.0,1.300429]
[1641041421593,0.0001,47117.0,47116.0,2.36063368]
[1641041421795,0.0001,47117.0,47116.0,1.54852368]
[1641041422394,0.0001,47117.0,47116.0,1.60157368]
[1641041422594,0.0001,47117.0,47116.0,1.61990338]
[1641041423547,0.0001,47117.0,47116.0,1.71990338]
[1641041423748,0.0003,47118.0,47116.0,1.74156785]
[1641041423946,0.0003,47118.0,47117.0,1.300429]
[1641041424146,0.0003,47118.0,47117.0,2.529429]
[1641041424347,0.00040954,47118.0,47117.0,2.529429]
[1641041424749,0.00040954,47118.0,47117.0,2.55061537]
[1641041424947,0.00755332,47119.0,47117.0,3.26798337]
[1641041425149,0.00030028,47121.0,47120.0,0.96]
[1641041425447,0.0003,47126.0,47121.0,0.340429]
[1641041425648,0.0003,47126.0,47122.0,1.74696985]
[1641041426047,0.0003,47126.0,47122.0,1.84696985]
[1641041426250,0.0002,47126.0,47122.0,1.84696985]
[1641041426448,0.0024,47129.0,47122.0,1.84696985]
[1641041426449,0.0469,47127.0,47125.0,0.32874887]
[1641041426706,0.0469,47127.0,47126.0,0.61023696]
[1641041427207,0.04706433,47127.0,47126.0,0.61023696]
[1641041427406,0.04706433,47127.0,47126.0,0.340429]
[1641041427604,0.04706433,47127.0,47126.0,0.36153791]
[1641041429205,0.04706433,47127.0,47126.0,0.38164993]
[1641041429405,0.04706433,47127.0,47126.0,0.36054102]
[1641041430207,0.04706433,47127.0,47126.0,0.38202843]
[1641041430447,0.04706433,47127.0,47126.0,0.36191641]
[1641041430646,0.04706433,47127.0,47126.0,0.381539]
[1641041430849,0.04706433,47127.0,47126.0,0.36005159]
[1641041431650,0.04706433,47127.0,47126.0,0.37990122]
[1641041431849,0.0471555,47127.0,47126.0,2.44680595]
[1641041432149,0.0471555,47127.0,47126.0,1.24071622]
[1641041432348,0.0471555,47127.0,47126.0,2.44680595]
[1641041432650,0.0471555,47127.0,47126.0,3.57580595]
[1641041432850,0.0471555,47127.0,47126.0,1.56094644]
[1641041433051,0.0471555,47127.0,47126.0,1.64109681]
[1641041433349,0.0471555,47127.0,47126.0,2.89718654]
[1641041433750,0.0471555,47127.0,47126.0,2.91784568]
[1641041434192,0.0471555,47127.0,47126.0,2.76784568]
[1641041434792,0.0471555,47127.0,47126.0,2.78754754]
[1641041435096,0.0471555,47127.0,47126.0,2.74522059]
[1641041435694,0.0471555,47127.0,47126.0,1.61622059]
[1641041435894,0.0471555,47127.0,47126.0,2.74522059]
[1641041436295,0.0471555,47127.0,47126.0,2.76675451]
[1641041436498,0.0471555,47127.0,47126.0,2.74705265]
[1641041436696,0.0471555,47127.0,47126.0,2.76651856]
[1641041436899,0.0471555,47127.0,47126.0,2.74498464]
[1641041437398,0.0471555,47127.0,47126.0,1.53889491]
[1641041437844,0.0471555,47127.0,47126.0,0.41143878]
[1641041438042,0.0471555,47127.0,47126.0,0.36143878]
[1641041438639,0.0471555,47127.0,47126.0,0.38249405]
[1641041438841,0.0471555,47127.0,47126.0,0.36148427]
[1641041439640,0.0471555,47127.0,47126.0,0.38068153]
[1641041439842,0.0471555,47127.0,47126.0,0.35962626]
[1641041440742,0.0471555,47127.0,47126.0,0.38079183]
[1641041440941,0.0471555,47127.0,47126.0,0.36159457]
[1641041441605,0.0471555,47127.0,47126.0,0.41159457]
[1641041441802,0.0471555,47127.0,47126.0,0.42975724]
[1641041442101,0.0471555,47127.0,47126.0,0.40859167]
[1641041442602,0.0421555,47127.0,47126.0,0.40859167]
[1641041442805,0.0421555,47127.0,47126.0,0.429648]
[1641041443003,0.0421555,47127.0,47126.0,0.41148533]
[1641041443903,0.0421555,47127.0,47126.0,0.43157946]
[1641041444906,0.0421555,47127.0,47126.0,0.45004605]
[1641041445105,0.0421555,47127.0,47126.0,0.40889559]
[1641041445742,0.0421555,47127.0,47126.0,0.43068821]
[1641041445940,0.0421555,47127.0,47126.0,0.41222162]
[1641041446840,0.0421555,47127.0,47126.0,0.43342883]
[1641041447041,0.0421555,47127.0,47126.0,0.41163621]
[1641041448043,0.04071986,47127.0,47126.0,0.41163621]
[1641041448444,0.04071986,47127.0,47126.0,0.42981095]
[1641041448645,0.04071986,47127.0,47126.0,0.40860374]
[1641041448845,0.04071986,47127.0,47126.0,0.42832538]
[1641041449103,0.04071986,47127.0,47126.0,0.41015064]
[1641041449807,0.04071986,47127.0,47126.0,0.43195239]
[1641041450003,0.04071986,47127.0,47126.0,0.41223075]
[1641041450907,0.04071986,47127.0,47126.0,0.40981928]
[1641041451605,0.04071986,47127.0,47126.0,0.677279]
[1641041451807,0.04071986,47127.0,47126.0,0.69758328]
[1641041452007,0.04071986,47127.0,47126.0,0.678193]
[1641041452206,0.04071986,47127.0,47126.0,0.41073328]
[1641041452850,0.04071986,47127.0,47126.0,0.43100975]
[1641041453051,0.04071986,47127.0,47126.0,0.41070547]
[1641041453951,0.04071986,47127.0,47126.0,0.43182088]
[1641041454150,0.04071986,47127.0,47126.0,0.41154441]
[1641041455451,0.04071986,47127.0,47126.0,0.42981702]
[1641041455751,0.04071986,47127.0,47126.0,0.40870161]
[1641041455951,0.04071986,47127.0,47126.0,0.42740067]
[1641041456151,0.04071986,47127.0,47126.0,0.40912806]
[1641041456607,0.04071986,47127.0,47126.0,1.56521239]
[1641041456803,0.04071986,47127.0,47126.0,0.38095813]